bitfinex-derivatives/quotes_ETHF0:USTF0_20240927
["timestamp","ask_amount","ask_price","bid_price","bid_amount"]
[1727467120252,0.37045,2698.8,2698.6,0.37046]
[1727467120859,34.0978,2698.9,2698.7,0.37044]
[1727467121064,34.46823,2698.9,2698.3,0.92627]
[1727467121255,0.37044,2698.8,2698.7,0.37044]
[1727467122263,0.37046,2698.7,2698.6,0.37046]
[1727467122466,0.37045,2698.8,2698.7,0.37045]
[1727467122761,0.37045,2698.7,2698.6,0.37046]
[1727467123358,0.37044,2698.8,2698.7,0.37044]
[1727467123757,4.07604,2698.8,2698.7,0.37044]
[1727467123959,0.37044,2698.8,2698.7,0.37044]
[1727467124553,0.37044,2698.8,2698.3,0.92625]
[1727467124554,0.37046,2698.7,2698.6,0.37045]
[1727467124866,0.37046,2698.7,2698.6,0.37046]
[1727467126554,35.55459547,2698.9,2698.3,0.92625]
[1727467126760,3.2078,2698.6,2698.3,0.92625]
[1727467127267,0.37045,2698.7,2698.6,0.37045]
[1727467127465,3.57825,2698.7,2698.6,0.37045]
[1727467129966,3.60565,2698.7,2698.6,0.37045]
[1727467131471,3.2352,2698.7,2698.6,0.37045]
[1727467132366,3.60565,2698.7,2698.6,0.37045]
[1727467133167,3.2352,2698.7,2698.6,0.37045]
[1727467136165,3.2352,2698.7,2698.6,0.37045]
[1727467136359,0.39785,2698.7,2698.6,0.37045]
[1727467136568,3.60565,2698.7,2698.6,0.37045]
[1727467136873,3.60565,2698.7,2698.1,1.70753]
[1727467136874,9.8308,2698.7,2698.1,1.70753]
[1727467137073,0.76118,2698.6,2698.5,0.37048]
[1727467137568,0.3907,2698.6,2698.5,0.37048]
[1727467137973,0.37052,2698.3,2698.2,0.37052]
[1727467138269,3.5783,2698.4,2698.3,0.37051]
[1727467138466,3.9468,2698.4,2698.3,0.37051]
[1727467139371,3.2078,2698.4,2698.3,0.37051]
[1727467139876,0.39786,2698.7,2698.6,0.37046]
[1727467139877,0.0274,2698.7,2698.6,0.37046]
[1727467140268,0.37048,2698.5,2698.4,0.7842]
[1727467140468,3.2352,2698.7,2698.5,0.37047]
[1727467140668,0.37047,2698.6,2698.5,0.37047]
[1727467140863,3.2352,2698.7,2698.6,0.37046]
[1727467141068,0.37047,2698.6,2698.5,0.37047]
[1727467141469,1.82726547,2698.6,2698.4,0.77539]
[1727467141678,0.37048,2698.5,2698.4,0.4049]
[1727467142070,0.37052,2698.3,2698.0,0.37054]
[1727467142270,1.4542262,2698.3,2698.2,0.37052]
[1727467142477,1.8491262,2698.4,2698.1,0.37053]
[1727467142675,1.8491262,2698.4,2697.9,0.37055]
[1727467142877,1.8491262,2698.4,2698.1,0.37053]
[1727467142878,1.8472262,2698.3,2698.1,0.37053]
[1727467143075,2.2177362,2698.3,2698.1,0.37053]
[1727467143278,1.8472262,2698.3,2698.2,0.37052]
[1727467144072,1.8472262,2698.3,2698.1,0.37052]
[1727467144381,2.2177362,2698.3,2698.1,0.37052]
[1727467144875,2.2177362,2698.3,2697.8,3.2078]
[1727467144876,0.37052,2698.2,2698.0,0.37054]
[1727467145270,1.8472262,2698.3,2698.1,0.37053]
[1727467145474,1.8472262,2698.3,2698.2,0.37052]
[1727467145674,1.8491262,2698.4,2698.3,0.37051]
[1727467146068,1.4542262,2698.5,2698.4,0.37049]
[1727467146291,1.45414959,2698.6,2698.5,0.37048]
[1727467146677,1.45414959,2698.6,2698.0,1.33559495]
[1727467146678,0.9262,2698.5,2698.0,0.37054]
[1727467146875,1.82463843,2698.1,2697.9,0.37055]
[1727467147281,2.20257242,2698.1,2698.0,0.37055]
[1727467147678,1.45407242,2698.1,2698.0,0.37055]
[1727467147882,4.66187242,2698.2,2698.1,0.37053]
[1727467148079,3.2078,2698.2,2698.1,0.37053]
[1727467148376,1.83147242,2698.5,2698.4,0.37049]
[1727467148580,1.94220209,2698.7,2698.4,2.89]
[1727467148581,1.45407242,2698.7,2698.4,2.89]
[1727467148772,3.57823,2698.9,2698.7,0.37045]
[1727467148973,3.2078,2698.9,2698.8,0.37044]
[1727467149576,0.74782,2699.0,2698.8,0.37044]
[1727467150290,0.74782,2699.0,2698.8,0.37043]
[1727467150486,0.3774,2699.0,2698.9,0.37042]
[1727467151587,3.5852,2699.0,2698.9,0.37042]
[1727467152289,0.3774,2699.0,2698.9,0.37042]
[1727467152488,3.5852,2699.0,2698.9,0.37042]
[1727467153082,0.3774,2699.0,2698.9,0.37042]
[1727467153476,3.5852,2699.0,2698.9,0.37042]
[1727467153680,3.2078,2699.0,2698.9,0.37042]
[1727467153882,3.2078,2699.3,2699.2,0.37038]
[1727467154090,1.45407242,2699.5,2699.4,0.37036]
[1727467154389,5.03220242,2699.6,2699.4,0.37036]
[1727467154587,3.2078,2699.6,2699.5,0.37034]
[1727467154786,1.84347242,2699.7,2699.5,0.37033]
[1727467154787,0.3894,2699.7,2699.5,0.37033]
[1727467154979,0.75972,2699.7,2699.5,0.37033]
[1727467155181,0.75972,2699.7,2699.6,0.37033]
[1727467155391,0.75972,2699.7,2699.3,0.96909495]
[1727467155392,0.3692,2699.8,2699.7,0.37031]
[1727467155698,3.2078,2700.3,2700.2,0.37024]
[1727467155988,3.2078,2700.4,2700.0,4.229]
[1727467156182,29.45407242,2700.5,2699.9,0.3714]
[1727467156381,0.37025,2700.2,2699.9,0.74168]
[1727467156682,0.37025,2700.2,2700.0,0.37027]
[1727467156993,3.57804,2700.3,2700.0,0.37027]
[1727467157382,4.66187242,2700.5,2700.2,2.89]
[1727467157587,4.66187242,2700.5,2700.2,1.339]
[1727467157588,0.37023,2700.3,2700.2,1.339]
[1727467157787,3.2078,2700.5,2700.2,1.339]
[1727467157788,0.37023,2700.4,2700.2,1.70924]
[1727467158293,0.37023,2700.4,2700.2,0.37024]
[1727467158294,0.37022,2700.4,2700.2,0.37024]
[1727467158792,0.37022,2700.4,2700.0,2.89]
[1727467158793,0.37024,2700.3,2700.1,1.70925]
[1727467158991,0.37024,2700.3,2700.1,0.37025]
[1727467159496,3.2871,2700.8,2700.4,0.37022]
[1727467159497,3.2078,2700.8,2700.4,0.37022]
[1727467159693,0.37014,2701.0,2700.8,0.37016]
[1727467159885,3.9836,2701.1,2700.7,0.37017]
[1727467159886,0.37015,2700.9,2700.7,0.37017]
[1727467160086,0.37014,2701.0,2700.8,0.37015]
[1727467160793,4.35373,2701.1,2700.6,1.339]
[1727467160996,3.9836,2701.1,2701.0,0.37014]
[1727467161196,0.7758,2701.1,2701.0,3.26014]
[1727467161385,3.2078,2701.3,2701.0,2.89]
[1727467161585,3.2078,2701.4,2701.3,0.37009]
[1727467161979,3.2078,2701.4,2701.0,2.89]
[1727467162185,3.2078,2701.1,2700.5,0.7857]
[1727467162387,0.3953,2701.0,2700.9,0.37015]
[1727467162596,0.3953,2701.0,2700.8,0.37015]
[1727467162798,0.76544,2701.0,2700.8,0.37015]
[1727467163182,0.37016,2700.9,2700.7,0.37017]
[1727467163487,0.37016,2700.9,2700.2,2.89]
[1727467163488,0.3702,2700.6,2700.2,2.89]
[1727467163683,3.2078,2700.8,2700.4,0.37021]
[1727467163684,0.37019,2700.7,2700.4,0.37021]
[1727467163889,3.2078,2700.8,2700.4,0.37021]
[1727467164092,0.37018,2700.7,2700.4,0.37021]
[1727467164287,0.37019,2700.6,2700.4,0.37021]
[1727467164495,3.2078,2700.8,2700.2,0.37024]
[1727467164496,0.37023,2700.4,2700.2,0.37024]
[1727467164801,3.2078,2700.5,2700.2,2.89]
[1727467165095,3.57801,2700.5,2700.3,0.37023]
[1727467165291,0.3864,2700.4,2700.3,0.37023]
[1727467165995,0.37025,2700.2,2700.0,0.37027]
[1727467166191,0.37025,2700.2,2700.1,0.37026]
[1727467166192,3.2078,2700.2,2700.1,0.37026]
[1727467166396,0.37018,2700.7,2700.5,0.3702]
[1727467166585,3.2078,2700.7,2700.6,3.26019]
[1727467166787,0.4002,2700.8,2700.7,0.37018]
[1727467167392,0.3697,2700.9,2700.8,0.37016]
[1727467167595,0.3697,2700.9,2700.8,3.26016]
[1727467167796,0.7699,2701.3,2700.8,9.8002]
[1727467168099,0.7699,2701.3,2701.1,3.26011]
[1727467168299,0.7699,2701.3,2700.7,3.273]
[1727467168504,0.7699,2701.3,2700.9,2.89]
[1727467168809,1.14,2701.3,2700.9,2.89]
[1727467169102,1.14,2701.3,2700.9,3.26014]
[1727467169295,0.7699,2701.3,2701.0,0.37013]
[1727467169608,1.14,2701.3,2701.0,0.37013]
[1727467169901,1.14,2701.3,2700.9,3.26014]
[1727467169902,0.37012,2701.2,2700.9,3.26014]
[1727467170304,0.37011,2701.2,2700.9,0.37014]
[1727467170688,0.7699,2701.3,2700.9,2.89]
[1727467170897,3.57792,2701.1,2700.8,0.37016]
[1727467171197,0.7699,2701.3,2700.8,2.89]
[1727467171395,0.7699,2701.3,2701.2,0.37011]
[1727467172299,0.7699,2701.3,2701.2,3.26011]
[1727467172300,0.3697,2701.3,2701.2,3.26011]
[1727467172510,3.2078,2701.5,2701.3,0.37009]
[1727467173094,4.128,2702.1,2701.7,0.37004]
[1727467173095,3.2078,2701.8,2701.7,0.37004]
[1727467173394,3.2078,2701.8,2701.5,0.76046]
[1727467173602,0.378,2701.7,2701.4,1.549]
[1727467173797,0.74804,2701.7,2701.5,0.37006]
[1727467174506,0.378,2701.7,2701.5,0.37006]
[1727467175000,0.3878,2701.6,2700.9,6.0978]
[1727467175204,0.75786,2701.6,2701.1,2.89]
[1727467175394,0.75786,2701.6,2701.4,0.37007]
[1727467175395,0.3878,2701.6,2701.4,0.37007]
[1727467175596,0.75785,2701.6,2701.4,0.37007]
[1727467176302,0.3878,2701.6,2701.5,0.37007]
[1727467176496,0.3878,2701.6,2701.5,3.26007]
[1727467176698,4.128,2702.1,2701.5,3.26007]
[1727467176699,3.2078,2701.9,2701.5,12.5916]
[1727467176900,3.5834,2702.6,2701.8,6.0978]
[1727467177100,3.5834,2702.6,2702.3,2.89]
[1727467177304,3.5834,2702.6,2702.5,0.36993]
[1727467177512,3.5834,2702.6,2702.5,3.25993]
[1727467177898,3.5834,2702.6,2702.5,0.36993]
[1727467178109,0.3756,2702.6,2702.5,0.36993]
[1727467178798,3.5816,2703.0,2702.5,3.25993]
[1727467179004,0.74367,2703.0,2702.7,2.89]
[1727467179198,4.519,2703.1,2702.4,3.2078]
[1727467179199,0.391,2703.1,2702.9,2.89]
[1727467179403,0.391,2703.1,2703.0,1.17914]
[1727467180008,0.76085,2703.1,2703.0,1.17914]
[1727467180212,0.36987,2703.0,2702.7,2.89]
[1727467180407,0.76085,2703.1,2702.8,1.548]
[1727467180611,0.391,2703.1,2702.8,1.91789]
[1727467180803,0.391,2703.1,2702.9,4.438]
[1727467180997,0.76085,2703.1,2702.9,4.438]
[1727467181197,0.391,2703.1,2702.7,2.89]
[1727467181407,3.2078,2703.0,2702.8,1.548]
[1727467181603,0.36987,2703.0,2702.8,1.548]
[1727467182008,0.76086,2703.1,2702.8,1.548]
[1727467182409,0.36987,2703.0,2702.8,1.548]
[1727467182605,0.76086,2703.1,2702.8,1.548]
[1727467182807,0.404,2703.4,2702.9,8.138]
[1727467183005,0.404,2703.4,2703.2,2.89]
[1727467183006,0.36982,2703.3,2703.2,2.89]
[1727467183208,0.77382,2703.4,2703.2,2.89]
[1727467183510,0.77381,2703.4,2703.2,2.89]
[1727467183806,0.92425,2704.2,2703.3,7.57353736]
[1727467184002,3.9724,2704.3,2703.6,0.36977]
[1727467184202,0.36973,2704.0,2703.6,0.36977]
[1727467184403,0.36973,2704.0,2703.5,3.64449]
[1727467184611,0.92428,2704.2,2703.5,3.2747]
[1727467184805,0.36973,2704.0,2703.6,0.36978]
[1727467185007,0.7646,2704.3,2703.7,1.91776]
[1727467185407,0.36971,2704.2,2703.8,3.25975]
[1727467185607,0.36971,2704.1,2703.8,2.89]
[1727467185806,0.3697,2704.2,2703.9,1.615]
[1727467186013,0.3697,2704.2,2703.8,3.25975]
[1727467186014,0.36972,2704.1,2703.8,4.504]
[1727467186412,0.7646,2704.3,2703.8,1.614]
[1727467186617,3.2078,2704.4,2703.8,5.164]
[1727467186807,0.36969,2704.3,2703.8,5.164]
[1727467187006,0.3697,2704.2,2703.8,5.53375]
[1727467187220,0.36969,2704.3,2703.9,0.36974]
[1727467187405,3.2078,2704.1,2703.6,0.3887]
[1727467187607,3.2078,2704.0,2703.5,0.3847]
[1727467187806,3.57758,2703.7,2703.5,0.3847]
[1727467188010,3.2078,2703.7,2703.2,0.3893]
[1727467188311,3.2078,2703.4,2703.2,0.3893]
[1727467188716,0.36982,2703.3,2703.2,0.3893]
[1727467189019,3.2078,2703.7,2703.2,0.3893]
[1727467189220,0.36981,2703.4,2703.2,0.3893]
[1727467189410,0.36982,2703.3,2703.2,0.3893]
[1727467189617,0.36982,2703.4,2703.2,0.3893]
[1727467190414,0.36982,2703.4,2703.0,0.3877]
[1727467190720,0.36982,2703.4,2703.0,0.75756]
[1727467191117,0.36982,2703.3,2703.0,0.75756]
[1727467191417,0.36981,2703.4,2703.0,0.75755]
[1727467191612,0.36981,2703.4,2703.0,0.3877]
[1727467191817,0.36982,2703.4,2703.0,0.75756]
[1727467192013,0.397,2703.6,2703.0,0.3877]
[1727467192215,0.36983,2703.2,2702.8,1.614]
[1727467192416,0.36983,2703.2,2702.9,0.36987]
[1727467192722,0.36989,2702.8,2702.2,0.086]
[1727467192920,3.2078,2703.0,2702.4,0.36994]
[1727467193219,0.74818,2702.9,2702.5,0.36993]
[1727467193716,0.74818,2702.9,2702.3,0.3867]
[1727467193717,0.36992,2702.6,2702.3,0.3867]
[1727467194025,3.2078,2702.7,2702.3,0.3867]
[1727467194217,0.36994,2702.4,2702.2,0.3832]
[1727467194417,0.36998,2702.2,2701.7,0.7741]
[1727467194618,0.36998,2702.2,2701.8,0.37002]
[1727467194917,0.3781,2702.3,2701.7,1.14413]
[1727467194918,0.36999,2702.1,2701.7,1.14413]
[1727467195120,0.36998,2702.2,2701.8,0.37002]
[1727467195311,0.36999,2702.1,2701.7,1.14414]
[1727467195514,3.2078,2702.4,2702.1,0.36997]
[1727467195714,3.2078,2702.4,2702.3,0.36996]
[1727467195914,3.2078,2703.1,2702.2,11.00772379]
[1727467196108,3.2078,2703.1,2702.4,3.55]
[1727467196316,3.2078,2703.4,2702.8,0.92473]
[1727467196510,3.5998,2704.0,2703.0,3.55]
[1727467196716,0.36976,2703.8,2703.0,3.55]
[1727467196918,3.57757,2703.7,2703.3,0.36981]
[1727467197314,0.36977,2703.7,2703.3,0.36982]
[1727467198021,3.2078,2703.6,2703.3,0.36982]
[1727467198522,3.2078,2703.6,2703.2,0.36983]
[1727467198523,3.57758,2703.6,2703.2,0.36983]
[1727467199133,0.3698,2703.5,2703.2,0.36983]
[1727467199314,3.57758,2703.6,2703.2,0.36983]
[1727467199824,0.36981,2703.4,2703.0,0.36985]
[1727467200129,3.2078,2703.3,2702.4,0.086]
[1727467200321,3.57771,2702.7,2702.3,1.12755]
[1727467200515,0.36991,2702.7,2702.3,1.12755]
[1727467200711,0.36991,2702.7,2702.3,5.32395002]
[1727467201030,0.36993,2702.6,2702.3,1.12755]
[1727467201226,0.36991,2702.7,2702.3,1.12755]
[1727467201422,3.2078,2702.8,2702.3,0.7576]
[1727467201617,3.2078,2702.8,2702.5,0.36993]
[1727467201922,3.5947,2703.2,2702.5,3.55]
[1727467202317,3.5947,2703.2,2702.5,7.68261]
[1727467202521,3.5947,2703.2,2702.6,0.36992]
[1727467202727,3.5947,2703.2,2703.1,0.36985]
[1727467202932,3.2078,2703.5,2703.2,0.36983]
[1727467203225,3.57759,2703.5,2703.2,0.36983]
[1727467203420,3.57759,2703.5,2703.1,0.36984]
[1727467203734,3.2078,2703.5,2703.0,0.36985]
[1727467204125,3.5776,2703.5,2703.2,0.36983]
[1727467204431,0.36981,2703.4,2703.1,0.36984]
[1727467204727,3.2078,2703.5,2703.0,0.4024]
[1727467204728,0.36982,2703.3,2703.0,0.4024]
[1727467205026,3.57764,2703.2,2703.0,0.4024]
[1727467205227,3.57764,2703.2,2702.9,0.3971]
[1727467205228,3.2078,2703.2,2702.9,0.3971]
[1727467205528,0.36985,2703.1,2702.9,0.3971]
[1727467205734,3.2078,2703.2,2702.9,0.76697]
[1727467206030,3.2078,2703.2,2703.0,0.36986]
[1727467206231,3.57764,2703.2,2702.9,0.76697]
[1727467206434,3.2078,2703.2,2702.9,0.76697]
[1727467206636,3.57764,2703.2,2702.9,0.76697]
[1727467206825,3.2078,2703.2,2702.9,0.76697]
[1727467207322,3.2078,2703.2,2702.9,0.3971]
[1727467207527,3.2078,2703.2,2702.9,0.76696]
[1727467207923,3.57764,2703.2,2702.9,0.76696]
[1727467208928,3.2078,2703.2,2702.9,0.76696]
[1727467209327,3.2078,2703.2,2702.9,0.3971]
[1727467209527,1.70816,2703.9,2703.4,0.3698]
[1727467209528,3.57757,2703.7,2703.4,0.3698]
[1727467209744,3.2078,2703.7,2703.6,0.36978]
[1727467210124,3.2078,2703.7,2703.6,14.00441567]
[1727467210326,3.2078,2703.7,2703.6,3.93623567]
[1727467210521,3.57757,2703.7,2703.5,0.38]
[1727467210726,0.36978,2703.6,2703.3,0.36982]
[1727467210924,3.57758,2703.7,2703.3,0.36982]
[1727467211329,3.2078,2703.7,2703.2,0.3671]
[1727467211833,3.2078,2703.7,2703.5,0.36979]
[1727467212128,0.3961,2703.9,2703.2,0.3671]
[1727467212329,0.36976,2703.8,2703.5,0.36979]
[1727467212532,0.3961,2703.9,2703.2,0.3671]
[1727467212533,0.3961,2703.9,2703.3,0.36981]
[1727467212729,3.2078,2703.7,2703.3,0.36982]
[1727467212926,0.3698,2703.5,2703.2,0.73693]
[1727467213321,0.36981,2703.4,2703.1,0.36984]
[1727467213635,1.29466,2702.7,2702.6,0.086]
[1727467213834,1.29466,2702.7,2701.8,4.87586]
[1727467213835,3.2078,2702.7,2701.9,0.4001]
[1727467214027,0.92471,2702.9,2701.9,0.4001]
[1727467214028,3.2078,2702.5,2701.9,0.4001]
[1727467214234,3.57775,2702.4,2702.1,0.36998]
[1727467214828,0.36996,2702.3,2702.0,0.36999]
[1727467215036,0.36997,2702.3,2702.0,0.36999]
[1727467215420,0.36999,2702.1,2701.8,3.57782]
[1727467215625,0.3839,2702.0,2701.9,0.37001]
[1727467216223,0.36995,2702.4,2702.1,0.36998]
[1727467216423,0.7529,2702.6,2702.0,0.92498]
[1727467216624,0.7529,2702.6,2702.5,0.36993]
[1727467216839,0.3839,2702.6,2702.5,0.36993]
[1727467217229,0.3839,2702.6,2702.4,0.36994]
[1727467217630,0.3839,2702.6,2702.5,0.36993]
[1727467217824,0.3839,2702.6,2702.4,0.36994]
[1727467218330,0.3839,2702.6,2702.5,0.36993]
[1727467218532,0.3839,2702.6,2702.4,0.36994]
[1727467219535,0.3839,2702.6,2702.5,0.36993]
[1727467220325,0.3839,2702.6,2702.4,0.36993]
[1727467221132,0.3839,2702.6,2702.5,0.36993]
[1727467222833,3.2352,2702.7,2702.6,0.36992]
[1727467223240,0.0274,2702.7,2702.6,15.46952]
[1727467223544,3.2078,2703.4,2702.6,10.57874406]
[1727467223730,3.2078,2703.4,2702.7,2.60310203]
[1727467223930,0.7895,2703.5,2703.3,0.36982]
[1727467226238,0.7895,2703.5,2703.4,0.36981]
[1727467227227,1.15929,2703.5,2703.0,8.09410985]
[1727467227434,3.2078,2703.2,2702.7,0.96540985]
[1727467227634,3.2078,2703.2,2702.7,0.3699]
[1727467228132,0.36988,2702.9,2702.6,0.36991]
[1727467228332,0.36986,2703.1,2702.8,0.36989]
[1727467228638,0.36986,2703.1,2702.4,0.96540985]
[1727467228639,3.2078,2703.2,2702.5,0.96540985]
[1727467228836,0.36993,2702.5,2702.2,1.71757985]
[1727467229244,0.36993,2702.5,2702.2,0.36997]
[1727467229438,0.386,2702.4,2702.2,0.36997]
[1727467229945,0.386,2702.4,2702.3,0.36996]
[1727467231440,3.5938,2702.4,2701.8,1.33820985]
[1727467231740,3.5938,2702.4,2701.6,5.12040884]
[1727467231741,0.36999,2702.1,2701.9,0.37001]
[1727467232330,0.36999,2702.1,2701.6,4.17320985]
[1727467232331,3.2078,2702.1,2701.6,4.17320985]
[1727467232535,3.2078,2701.8,2701.6,0.37005]
[1727467232741,3.57783,2701.8,2701.6,0.37005]
[1727467233137,3.57783,2701.8,2701.5,0.37006]
[1727467233338,0.394,2701.7,2701.5,0.37006]
[1727467235046,0.394,2701.7,2701.6,0.37005]
[1727467235945,0.76212,2702.6,2702.3,0.36995]
[1727467237338,0.76212,2702.6,2702.0,3.55]
[1727467237339,0.3922,2702.6,2702.5,0.36993]
[1727467237546,0.3874,2702.8,2702.7,0.3699]
[1727467238144,0.3944,2703.1,2703.0,0.36986]
[1727467238443,0.3944,2703.1,2702.9,0.36987]
[1727467238640,0.3944,2703.1,2702.4,4.17343237]
[1727467238850,3.57768,2702.9,2702.3,0.3966]
[1727467239037,3.57768,2702.9,2702.7,0.3699]
[1727467239749,0.3699,2702.8,2702.6,0.36991]
[1727467240148,4.0891,2702.8,2702.1,0.3766]
[1727467240449,3.57773,2702.5,2702.3,0.36995]
[1727467240638,3.2078,2702.5,2702.3,0.36995]
[1727467240839,3.2078,2702.5,2702.1,0.3766]
[1727467241548,3.5969,2702.8,2702.7,0.3699]
[1727467241747,0.76426,2703.1,2702.7,0.3699]
[1727467241748,0.36987,2703.0,2702.7,0.3699]
[1727467242249,7.7293,2703.2,2702.7,0.3699]
[1727467242250,3.2078,2703.2,2703.1,0.36985]
[1727467242446,3.2078,2703.2,2702.8,3.99973653]
[1727467242746,3.57764,2703.2,2702.9,0.36987]
[1727467242949,3.57764,2703.2,2703.0,0.36986]
[1727467242950,3.2078,2703.2,2703.0,0.36986]
[1727467243340,3.2078,2703.2,2702.6,0.96563237]
[1727467243548,3.97114,2703.2,2702.9,0.36986]
[1727467243747,3.6013,2703.2,2702.6,0.96563237]
[1727467244053,0.36986,2703.1,2702.8,0.36988]
[1727467244354,0.36986,2703.1,2702.8,0.36989]
[1727467244546,0.36985,2703.1,2702.8,0.36988]
[1727467244846,3.97114,2703.2,2702.9,0.36987]
[1727467245248,3.6013,2703.2,2702.6,0.96563237]
[1727467245554,3.6013,2703.2,2703.1,0.36985]
[1727467245850,3.2078,2703.2,2703.1,0.36985]
[1727467247240,3.2078,2703.2,2703.1,4.06905]
[1727467247559,0.3767,2703.5,2703.4,0.36981]
[1727467248046,0.3946,2703.6,2703.5,0.36979]
[1727467249052,3.2078,2703.7,2703.1,4.47461]
[1727467249254,3.2078,2703.7,2703.3,0.3749]
[1727467249667,3.2078,2703.7,2703.6,0.36978]
[1727467249847,3.2078,2704.0,2703.8,0.36974]
[1727467250045,3.2078,2704.0,2703.9,0.36974]
[1727467250354,3.2078,2704.0,2703.7,0.36976]
[1727467250551,3.57753,2704.0,2703.6,0.3879]
[1727467250760,3.57753,2704.0,2703.7,0.36976]
[1727467250952,3.2078,2704.0,2703.6,0.3879]
[1727467251149,3.2078,2704.0,2703.3,4.54833237]
[1727467251150,4.13213,2704.0,2703.3,3.5827]
[1727467251459,0.36977,2703.8,2703.5,0.36979]
[1727467251842,3.2078,2703.7,2703.5,0.36979]
[1727467252152,3.57758,2703.7,2703.4,0.3698]
[1727467252357,3.97568,2703.7,2703.4,0.3698]
[1727467252755,3.6059,2703.7,2703.3,0.3749]
[1727467253350,3.2078,2704.1,2703.9,0.36973]
[1727467253855,3.57751,2704.1,2703.9,0.36973]
[1727467254257,0.36973,2704.0,2703.8,0.36974]
[1727467254450,3.57752,2704.1,2703.8,0.36974]
[1727467254649,3.57752,2704.1,2703.9,0.36974]
[1727467255249,3.2078,2704.1,2703.8,0.36975]
[1727467255554,3.2078,2704.1,2703.4,0.92453]
[1727467255555,3.2078,2704.1,2703.3,3.5827]
[1727467255755,3.2078,2703.8,2703.7,0.36977]
[1727467256154,3.57755,2703.8,2703.7,0.36977]
[1727467256357,3.57755,2703.8,2703.6,0.36977]
[1727467256556,3.2078,2703.8,2703.7,0.36977]
[1727467256957,3.2078,2703.8,2703.7,10.06817]
[1727467257151,5.39276031,2705.0,2703.7,18.53208561]
[1727467257352,5.39276031,2705.0,2704.3,3.55]
[1727467257353,0.36963,2704.7,2704.3,3.55]
[1727467257552,3.2078,2704.9,2704.6,0.36964]
[1727467257760,0.36961,2704.9,2704.6,0.36964]
[1727467258067,3.57741,2704.9,2704.2,0.92424]
[1727467258259,1.43736031,2705.4,2704.7,0.92408]
[1727467258458,3.2078,2705.7,2705.0,0.36958]
[1727467258758,1.43736031,2705.8,2705.0,0.36958]
[1727467258759,3.57733,2705.5,2705.0,0.36958]
[1727467258961,3.2078,2705.5,2705.2,3.55]
[1727467259158,0.36951,2705.6,2705.2,3.55]
[1727467259354,3.2078,2705.7,2705.2,0.36955]
[1727467259559,3.57731,2705.7,2705.2,0.36955]
[1727467259763,0.36951,2705.6,2705.2,0.36955]
[1727467259959,3.2078,2705.7,2705.2,0.36955]
[1727467259960,0.3695,2705.7,2705.2,0.36955]
[1727467260155,1.30522,2705.8,2705.0,3.55]
[1727467260469,0.36954,2705.4,2704.9,0.36959]
[1727467260658,0.36954,2705.4,2704.3,0.7412]
[1727467260659,3.6019,2705.3,2704.3,3.636]
[1727467260863,0.36956,2705.2,2704.3,3.55]
[1727467261059,0.36956,2705.2,2704.7,0.36962]
[1727467261375,3.6019,2705.3,2704.7,0.36962]
[1727467261376,0.36958,2705.1,2704.7,0.36962]
[1727467261580,0.36958,2705.1,2704.3,3.55]
[1727467261581,3.57739,2705.0,2704.6,0.36964]
[1727467261778,3.57739,2705.0,2704.4,0.36966]
[1727467261779,0.3696,2704.9,2704.4,0.36966]
[1727467261973,0.36962,2704.8,2704.3,3.55]
[1727467262281,0.36962,2704.8,2704.4,0.36966]
[1727467262485,0.36962,2704.8,2704.3,3.55]
[1727467262486,0.36961,2704.9,2704.5,0.36966]
[1727467262979,0.36963,2704.7,2704.3,0.36968]
[1727467263181,0.36963,2704.7,2704.0,3.55]
[1727467263182,0.3739,2704.8,2704.0,3.55]
[1727467263384,0.3739,2704.8,2704.2,0.36969]
[1727467263385,0.36965,2704.6,2704.2,0.36969]
[1727467263571,0.3739,2704.8,2704.2,0.36969]
[1727467263776,0.36965,2704.6,2704.2,0.36969]
[1727467263971,0.3739,2704.8,2704.2,0.36969]
[1727467264174,3.2078,2704.5,2704.2,0.36969]
[1727467264371,0.3739,2704.8,2704.3,0.36968]
[1727467264682,0.3739,2704.8,2704.4,0.36967]
[1727467264880,0.3739,2704.8,2704.0,3.55]
[1727467265082,0.3739,2704.8,2704.4,0.36967]
[1727467266477,0.3739,2704.8,2704.3,0.36968]
[1727467266685,3.2078,2704.6,2704.3,0.36968]
[1727467267878,0.3739,2704.8,2704.3,0.36968]
[1727467268078,3.2078,2704.6,2704.0,3.55]
[1727467268280,0.3739,2704.8,2704.6,0.36964]
[1727467269085,0.3739,2704.8,2704.7,0.36963]
[1727467270483,0.3986,2705.0,2704.9,0.3696]
[1727467271586,1.43736031,2705.4,2705.3,0.36955]
[1727467272790,1.43736031,2705.4,2705.2,3.2078]
[1727467273294,1.43736031,2705.4,2705.2,3.57735]
[1727467274001,1.43736031,2705.4,2705.3,0.36955]
[1727467277991,1.43736031,2705.4,2705.2,3.57735]
[1727467278299,0.3869,2705.3,2705.2,3.2078]
[1727467278892,0.3869,2705.3,2705.2,3.57736]
[1727467279200,0.3869,2705.3,2705.2,3.2078]
[1727467279493,0.3869,2705.3,2704.7,4.47406]
[1727467279494,0.3869,2705.3,2704.9,3.2078]
[1727467279896,0.3869,2705.3,2705.0,0.36958]
[1727467280093,0.3869,2705.3,2704.9,3.2078]
[1727467280299,0.75645,2705.3,2705.0,0.36958]
[1727467280892,0.3869,2705.3,2705.0,0.36958]